bitfinex/quotes_SOLUSD_20220119
["timestamp","ask_amount","ask_price","bid_price","bid_amount"]
[1642583185397,1.7282136,133.82,133.76,2.35260357]
[1642583186000,36.23721245,133.81,133.76,2.35260357]
[1642583186202,1.7282136,133.82,133.76,0.25]
[1642583186500,1.7282136,133.82,133.76,2.35260357]
[1642583187100,1.7282136,133.82,133.77,28.38168146]
[1642583189803,2.989,133.85,133.78,0.25]
[1642583190003,2.989,133.88,133.78,0.25]
[1642583190203,23.5639,133.89,133.79,10.76]
[1642583190404,34.7723,133.89,133.79,10.76]
[1642583190605,34.7723,133.89,133.8,0.25]
[1642583190807,36.14559142,133.88,133.8,7.06798217]
[1642583191407,36.14559142,133.88,133.8,0.25]
[1642583192206,36.14559142,133.88,133.8,3.238]
[1642583193908,0.25,133.87,133.8,3.238]
[1642583194510,0.25,133.87,133.8,78.158]
[1642583194815,3.89949604,133.93,133.81,72.0]
[1642583195015,37.20846322,133.99,133.83,72.0]
[1642583195211,10.76,134.0,133.84,72.25]
[1642583195410,2.987,133.99,133.84,85.997]
[1642583195616,2.08097333,134.01,133.85,6.0]
[1642583195812,14.0291,134.03,133.89,11.1925]
[1642583195813,2.08097333,134.02,133.89,11.1925]
[1642583196011,2.986,134.01,133.9,83.906]
[1642583196212,2.985,134.04,133.91,10.76]
[1642583196410,2.08097333,134.05,133.92,2.985]
[1642583196411,2.985,134.05,133.92,2.985]
[1642583196618,29.37211934,134.06,133.94,134.5]
[1642583196812,2.985,134.05,133.97,11.1859]
[1642583197045,2.08097333,134.11,133.98,6.0]
[1642583197244,7.899,134.14,133.99,82.76]
[1642583197561,7.899,134.14,134.01,134.5]
[1642583197742,7.899,134.14,134.02,148.493]
[1642583197943,7.899,134.14,134.03,10.76]
[1642583198142,7.899,134.14,134.03,19.743]
[1642583198344,7.899,134.14,134.04,0.25]
[1642583198542,7.899,134.14,134.05,10.76]
[1642583198743,7.899,134.14,134.06,0.25]
[1642583198943,7.899,134.14,134.07,10.76]
[1642583199142,7.899,134.14,134.08,6.0]
[1642583199341,7.899,134.14,134.09,10.76]
[1642583200147,7.899,134.14,134.09,11.1788]
[1642583200341,7.899,134.14,134.07,10.76]
[1642583200544,7.899,134.14,134.06,0.25]
[1642583200742,7.899,134.14,134.05,10.76]
[1642583200743,3.232,134.13,134.05,10.76]
[1642583200943,38.46373726,134.12,134.04,16.76]
[1642583201242,38.46373726,134.12,134.03,10.76]
[1642583201243,3.233,134.11,134.03,10.76]
[1642583201442,3.233,134.11,134.01,10.76]
[1642583201644,2.983,134.11,134.01,10.76]
[1642583202255,2.983,134.11,134.02,1.70200927]
[1642583202445,38.46373726,134.12,134.03,13.743]
[1642583202649,38.46373726,134.12,134.03,21.19500927]
[1642583202846,38.46373726,134.12,134.04,0.25]
[1642583204250,7.899,134.14,134.04,1.69969856]
[1642583204555,7.899,134.14,134.05,10.76]
[1642583204748,7.899,134.14,134.06,0.25]
[1642583204948,2.983,134.18,134.05,10.76]
[1642583205152,0.25,134.13,134.05,10.76]
[1642583205448,42.09884419,134.11,134.03,13.743]
[1642583205649,2.983,134.1,134.03,13.743]
[1642583205848,42.09884419,134.11,134.03,13.743]
[1642583206049,2.983,134.1,134.03,13.743]
[1642583206249,2.983,134.12,134.03,10.76]
[1642583206449,2.983,134.16,134.04,2.983]
[1642583206648,2.983,134.16,134.05,10.76]
[1642583206849,2.983,134.16,134.06,2.982]
[1642583207249,38.73113032,134.15,134.06,2.982]
[1642583207450,2.982,134.14,134.03,10.76]
[1642583207754,0.25,134.13,134.04,6.25]
[1642583208050,41.74602363,134.12,134.04,6.25]
[1642583208249,2.983,134.12,134.04,6.25]
[1642583208450,6.0,134.14,134.04,6.25]
[1642583208750,2.983,134.17,134.04,6.25]
[1642583208751,2.983,134.13,134.04,6.25]
[1642583208950,2.982,134.16,134.04,0.25]
[1642583209150,6.0,134.15,134.04,0.25]
[1642583209352,35.52574066,134.14,134.03,10.76]
[1642583209554,6.0,134.13,134.03,10.76]
[1642583209750,2.983,134.12,134.03,10.76]
[1642583209950,39.0142289,134.11,134.03,10.76]
[1642583210154,2.983,134.1,134.03,10.76]
[1642583210352,2.983,134.1,134.0,2.983]
[1642583210551,0.25,134.09,134.01,16.76]
[1642583210952,2.983,134.1,134.01,16.76]
[1642583211451,0.25,134.09,134.01,10.76]
[1642583211652,0.25,134.09,134.0,2.983]
[1642583211852,39.42667894,134.07,133.99,6.14]
[1642583212252,3.234,134.06,133.99,6.14]
[1642583212654,2.984,134.06,133.99,6.14]
[1642583212856,2.984,134.06,133.97,26.8616]
[1642583213054,2.984,134.08,133.97,37.6216]
[1642583213255,2.984,134.08,133.98,0.25]
[1642583213457,2.984,134.13,133.99,10.76]
[1642583213655,2.984,134.13,134.0,6.0]
[1642583213856,2.983,134.17,134.01,10.76]
[1642583214055,3.89233394,134.18,134.02,6.0]
[1642583214261,47.74423312,134.2,134.03,10.76]
[1642583214461,10.76,134.22,134.03,12.21171733]
[1642583214657,17.6320099,134.25,134.05,74.92]
[1642583214856,17.6320099,134.25,134.06,10.76]
[1642583215057,1.7738939,134.24,134.06,12.46171733]
[1642583215255,13.741,134.23,134.07,0.25]
[1642583215458,42.47238695,134.22,134.08,10.76]
[1642583215656,2.981,134.21,134.08,10.76]
[1642583216056,6.0,134.2,134.08,10.76]
[1642583216259,40.84397739,134.19,134.08,10.76]
[1642583216658,6.0,134.18,134.09,0.25]
[1642583216858,2.982,134.17,134.09,0.25]
[1642583217058,45.45118658,134.16,134.1,2.982]
[1642583217261,6.0,134.16,134.06,2.982]
[1642583217459,2.982,134.24,134.09,0.25]
[1642583217658,8.981,134.21,134.1,10.76]
[1642583217858,6.0,134.21,134.1,10.76]
[1642583218061,6.0,134.21,134.11,9.231]
[1642583218259,37.98656074,134.2,134.11,13.741]
[1642583218466,2.981,134.19,134.11,10.76]
[1642583218658,2.981,134.23,134.12,0.25]
[1642583218859,2.981,134.24,134.12,0.25]
[1642583219059,74.92,134.26,134.13,85.68]
[1642583219260,6.8720099,134.25,134.14,0.25]
[1642583219460,3.8910099,134.25,134.15,10.76]
[1642583219659,2.98,134.27,134.15,10.76]
[1642583219859,2.98,134.25,134.16,0.25]
[1642583220061,6.8692355,134.29,134.16,0.25]
[1642583220260,5.3692355,134.29,134.15,10.76]
[1642583220460,5.3692355,134.29,134.13,10.76]
[1642583220461,48.51283111,134.28,134.13,10.76]
[1642583220665,2.98,134.27,134.13,10.76]
[1642583221061,6.0,134.26,134.13,10.76]
[1642583221262,47.57812876,134.24,134.13,10.76]
[1642583221460,2.98,134.23,134.13,10.76]
[1642583221660,6.0,134.23,134.14,3.23]
[1642583221862,47.57812876,134.24,134.15,10.76]
[1642583222062,47.57812876,134.24,134.16,2.98]
[1642583222262,2.98,134.23,134.15,10.76]
[1642583223062,0.25,134.22,134.15,10.76]
[1642583223307,2.98,134.23,134.15,10.76]
[1642583223468,47.57812876,134.24,134.15,10.76]
[1642583223867,47.57812876,134.24,134.16,0.25]
[1642583224062,47.57812876,134.24,134.15,10.76]
[1642583224262,2.98,134.23,134.15,10.76]
[1642583225062,2.98,134.23,134.13,2.98]
[1642583225273,2.08097333,134.21,134.13,10.76]
[1642583225464,39.69732657,134.2,134.11,10.76]
[1642583225665,38.7972999,134.2,134.12,9.231]
[1642583225868,36.71632657,134.2,134.13,10.76]
[1642583226166,0.25,134.19,134.14,2.981]
[1642583226366,2.08097333,134.22,134.15,0.25]
[1642583226567,2.08097333,134.24,134.15,11.01]
[1642583226772,2.08097333,134.24,134.16,79.35170054]
[1642583226968,2.08097333,134.26,134.17,10.76]
[1642583227168,2.08097333,134.26,134.18,77.9]
[1642583227369,9.18850268,134.32,134.21,37.0]
[1642583227370,8.33540019,134.3,134.21,37.0]
[1642583227568,4.13900178,134.31,134.22,19.739]
[1642583227767,37.05044879,134.32,134.23,11.01]
[1642583227968,37.05044879,134.32,134.23,13.989]
[1642583228370,40.02844879,134.32,134.23,11.01]
[1642583228568,40.02844879,134.32,134.23,10.76]
[1642583228769,0.25,134.31,134.21,13.738]
[1642583228968,43.42492805,134.29,134.21,13.738]
[1642583229171,3.229,134.28,134.21,13.738]
[1642583229969,2.979,134.28,134.21,13.738]
[1642583230369,43.42492805,134.29,134.21,13.738]
[1642583230797,43.42492805,134.29,134.22,0.25]
[1642583231000,43.42492805,134.29,134.21,10.76]
[1642583231202,2.979,134.28,134.2,10.76]
[1642583232202,2.979,134.28,134.21,0.25]
[1642583232402,43.42492805,134.29,134.22,10.76]
[1642583233202,43.42492805,134.29,134.21,0.25]
[1642583233401,43.42492805,134.29,134.2,10.76]
[1642583233402,43.42492805,134.29,134.2,11.01]
[1642583233605,43.42492805,134.29,134.21,15.19070054]
[1642583234004,43.42492805,134.29,134.22,0.25]
[1642583234203,43.42492805,134.29,134.22,10.76]
[1642583234403,7.11800178,134.35,134.22,11.01]
[1642583234604,7.11800178,134.35,134.22,12.45378571]
[1642583234605,6.0,134.34,134.22,12.45378571]
[1642583234804,2.978,134.33,134.22,12.45378571]
[1642583235007,2.978,134.33,134.22,11.01]
[1642583235406,43.84314071,134.32,134.22,12.45378571]
[1642583235706,43.84314071,134.32,134.22,12.20378571]
[1642583235910,43.84314071,134.32,134.21,2.979]
[1642583236210,3.229,134.31,134.21,13.739]
[1642583237209,14.4041,134.31,134.21,13.739]
[1642583237408,14.4041,134.31,134.18,22.5175]
[1642583237810,41.21142429,134.29,134.18,22.5175]
[1642583238108,2.979,134.28,134.18,22.5175]
[1642583238308,2.979,134.28,134.19,10.76]
[1642583238511,41.21142429,134.29,134.19,13.739]
[1642583238712,41.21142429,134.29,134.2,0.25]
[1642583239316,7.11800178,134.32,134.2,0.25]
[1642583239512,2.979,134.32,134.2,0.25]
[1642583239712,2.979,134.32,134.21,10.76]
[1642583239916,28.89390178,134.35,134.21,13.739]
[1642583239917,4.13900178,134.35,134.21,13.739]
[1642583240115,6.0,134.34,134.22,7.68446698]
[1642583240312,41.5567112,134.33,134.23,10.76]
[1642583240512,44.5347112,134.33,134.22,0.25]
[1642583241217,55.4575112,134.33,134.22,1.68446698]
[1642583241415,0.25,134.32,134.22,1.68446698]
[1642583241612,2.979,134.31,134.21,10.76]
[1642583241813,49.38030507,134.3,134.21,10.76]
[1642583242214,2.979,134.31,134.21,12.19446698]
[1642583242413,7.11800178,134.33,134.21,17.72846698]
[1642583242613,10.13900178,134.35,134.22,2.979]
[1642583242913,2.979,134.34,134.23,10.76]
[1642583243112,2.979,134.34,134.24,2.978]
[1642583243312,44.49469689,134.33,134.24,2.978]
[1642583243512,2.978,134.32,134.22,10.76]
[1642583243716,0.25,134.31,134.22,10.76]
[1642583243914,2.979,134.3,134.22,10.76]
[1642583244114,48.97510596,134.29,134.22,10.76]
[1642583244316,49.22510596,134.29,134.22,10.76]
[1642583244514,48.97510596,134.29,134.22,10.76]
[1642583245815,2.979,134.3,134.22,10.76]
[1642583246015,2.979,134.31,134.22,10.76]
[1642583246219,2.979,134.31,134.23,0.25]
[1642583246419,7.11800178,134.33,134.23,3.229]
[1642583247024,45.99930452,134.32,134.23,3.229]
[1642583247216,50.1383063,134.32,134.23,3.229]
[1642583247617,0.25,134.31,134.23,3.229]
[1642583247818,0.25,134.31,134.23,0.25]
[1642583247819,4.13900178,134.31,134.23,0.25]
[1642583248019,50.1383063,134.32,134.23,0.25]
[1642583248218,50.1383063,134.32,134.21,2.978]
[1642583248419,50.1383063,134.32,134.22,10.76]
[1642583248618,50.1383063,134.32,134.22,11.01]
[1642583248821,50.1383063,134.32,134.27,1.00251605]
[1642583249118,53.1163063,134.32,134.27,1.00251605]
[1642583249919,7.11700178,134.32,134.27,1.00251605]
[1642583250117,7.11700178,134.32,134.28,0.25]
[1642583250118,4.13900178,134.32,134.28,0.25]
[1642583250318,4.13900178,134.33,134.27,1.00251605]
[1642583250519,4.13900178,134.34,134.27,1.00251605]
[1642583250720,8.34043642,134.34,134.27,1.00251605]
[1642583250920,45.24790758,134.33,134.27,1.00251605]
[1642583251919,49.38690936,134.33,134.23,2.978]
[1642583252120,4.13900178,134.31,134.21,10.76]
[1642583252318,51.37514677,134.3,134.21,10.76]
[1642583252520,62.54994677,134.3,134.21,10.76]
[1642583252718,62.29994677,134.3,134.21,10.76]
[1642583252919,66.43894855,134.3,134.21,10.76]
[1642583253119,0.25,134.29,134.21,10.76]
[1642583253721,15.56490178,134.29,134.21,10.76]
[1642583254422,15.56490178,134.29,134.19,10.76]
[1642583254623,11.32573359,134.28,134.19,10.76]
[1642583254822,11.32573359,134.28,134.18,27.5408]
[1642583254823,11.1782,134.26,134.18,27.5408]
[1642583255022,11.1782,134.26,134.18,2.979]
[1642583255424,51.56332841,134.27,134.18,2.979]
[1642583255624,51.56332841,134.27,134.17,13.74]
[1642583255823,51.56332841,134.27,134.18,0.25]
[1642583256224,8.35340772,134.26,134.17,13.74]
[1642583256827,47.42432663,134.27,134.12,13.74]
[1642583256828,38.77847111,134.24,134.12,13.74]
[1642583257054,8.981,134.23,134.1,345.7399279]
[1642583257224,8.35407755,134.22,134.1,353.5199279]
[1642583257425,8.35407755,134.22,134.1,342.7599279]
[1642583257426,50.12638121,134.2,134.1,342.7599279]
[1642583257623,2.981,134.19,134.1,342.7599279]
[1642583257823,3.231,134.19,134.1,342.7599279]
[1642583258123,2.981,134.19,134.1,342.7599279]
[1642583258923,7.12000178,134.23,134.11,13.741]
[1642583259123,4.13900178,134.24,134.11,25.113]
[1642583259327,41.23312587,134.25,134.11,25.113]
[1642583259524,2.981,134.24,134.11,19.113]
[1642583259724,7.12000178,134.24,134.12,0.25]
[1642583259923,14.1605,134.24,134.13,10.76]
[1642583260323,14.1605,134.24,134.14,0.25]
[1642583260725,14.1605,134.24,134.13,10.76]
[1642583260929,14.1605,134.24,134.14,0.25]
[1642583261327,6.0,134.23,134.14,0.25]
[1642583261527,11.1811,134.22,134.14,0.25]
[1642583261725,45.06213342,134.22,134.14,0.25]
[1642583262128,2.981,134.24,134.14,0.25]
[1642583262326,2.981,134.24,134.14,3.23]
[1642583262729,7.11900178,134.26,134.14,3.23]
[1642583262926,6.25,134.25,134.14,3.23]
[1642583263127,42.54541392,134.24,134.14,3.23]
[1642583263332,53.72491392,134.24,134.14,3.23]
[1642583263528,53.72491392,134.24,134.14,2.98]
[1642583263728,53.72491392,134.24,134.15,0.25]
[1642583263927,42.54541392,134.24,134.15,0.25]
[1642583264127,42.54541392,134.24,134.14,2.98]
[1642583264328,45.52541392,134.24,134.14,2.98]
[1642583264565,45.52541392,134.24,134.15,0.25]
[1642583264731,0.25,134.23,134.13,10.76]
[1642583264930,44.83596325,134.21,134.13,10.76]
[1642583265229,44.83596325,134.21,134.11,38.4122]
[1642583265434,3.231,134.2,134.12,0.25]
[1642583265632,14.4138,134.2,134.11,10.76]
[1642583265845,14.4138,134.2,134.09,13.741]
[1642583266031,14.4138,134.2,134.09,10.76]
[1642583267136,46.20458896,134.18,134.09,10.76]
[1642583267332,2.982,134.17,134.09,10.76]
[1642583267534,35.02008896,134.18,134.09,13.742]
[1642583267732,35.02008896,134.18,134.1,0.25]
[1642583268333,2.982,134.19,134.1,0.25]
[1642583268533,2.981,134.2,134.11,1.42423828]
[1642583268732,2.981,134.22,134.12,11.01]
[1642583268932,2.981,134.23,134.12,13.991]
[1642583269132,2.98,134.24,134.12,13.991]
[1642583269332,35.41399422,134.23,134.12,13.991]
[1642583269532,2.981,134.22,134.12,13.991]
[1642583269734,14.1621,134.22,134.12,13.991]
[1642583270133,14.1621,134.22,134.13,6.0]
[1642583270334,38.39499422,134.23,134.13,6.0]
[1642583270532,0.25,134.22,134.13,6.0]
[1642583270935,11.4311,134.22,134.13,6.0]
[1642583271933,14.4121,134.22,134.13,6.0]
[1642583272734,14.4121,134.22,134.12,13.991]
[1642583272934,14.4121,134.22,134.12,11.01]
[1642583273534,14.4121,134.22,134.13,6.0]
[1642583273835,14.4121,134.22,134.12,11.01]
[1642583274234,14.4121,134.22,134.12,10.76]
[1642583274738,14.1621,134.22,134.12,10.76]
[1642583274943,2.981,134.22,134.13,0.25]
[1642583275139,46.59419422,134.23,134.14,10.76]
[1642583276240,0.25,134.22,134.14,12.18236348]
[1642583276440,46.59419422,134.23,134.15,0.25]
[1642583276840,0.25,134.22,134.14,10.76]
[1642583277040,11.4313,134.22,134.14,10.76]
[1642583278242,46.59429422,134.23,134.14,10.76]
[1642583278442,35.41399422,134.23,134.14,10.76]
[1642583278943,0.25,134.22,134.14,10.76]
[1642583279244,3.231,134.22,134.14,10.76]
[1642583279446,35.41399422,134.23,134.14,87.10236348]
[1642583279670,7.11900178,134.26,134.15,2.98]
[1642583280077,0.25,134.25,134.16,10.76]
[1642583280277,0.25,134.25,134.16,11.01]
[1642583280674,2.98,134.26,134.16,11.01]
[1642583280874,74.92,134.29,134.16,11.01]
[1642583280875,7.11900178,134.28,134.17,4.40236348]
[1642583281076,6.0,134.27,134.18,10.76]
[1642583281274,6.0,134.27,134.18,11.01]
[1642583281475,6.0,134.27,134.18,12.43236348]
[1642583281675,4.13900178,134.29,134.18,12.43236348]
[1642583281876,48.67742674,134.26,134.18,11.01]
[1642583282077,48.67742674,134.26,134.18,10.76]
[1642583282277,0.25,134.25,134.18,10.76]
[1642583282478,3.23,134.25,134.18,10.76]
[1642583282682,2.98,134.25,134.18,10.76]
[1642583283277,28.92290268,134.3,134.18,10.76]
[1642583283278,4.13900178,134.28,134.19,4.65236348]
[1642583283479,4.13900178,134.28,134.2,10.76]
[1642583283977,42.98399575,134.27,134.2,10.76]
[1642583284277,0.25,134.26,134.2,10.76]
[1642583284478,0.25,134.26,134.18,10.76]
[1642583284677,0.25,134.26,134.18,11.01]
[1642583285082,4.13900178,134.28,134.18,12.43236348]
[1642583285280,4.13900178,134.29,134.18,146.93236348]
[1642583285478,8.34792036,134.3,134.19,6.0]
[1642583285681,8.34792036,134.3,134.2,11.01]
[1642583285877,6.0,134.29,134.2,10.76]
[1642583286080,44.58713602,134.28,134.21,0.25]
[1642583286277,44.58713602,134.28,134.22,10.76]
[1642583286679,4.13900178,134.31,134.23,0.25]
[1642583286878,4.13900178,134.32,134.24,10.76]
[1642583287077,8.34716993,134.32,134.25,2.978]
[1642583287278,0.74585077,134.33,134.25,3.228]
[1642583287483,0.74585077,134.33,134.25,2.978]
[1642583287678,42.83846205,134.32,134.23,10.76]
[1642583288079,0.25,134.31,134.23,10.76]
[1642583288979,11.4236,134.31,134.23,10.76]
[1642583289380,43.51630356,134.29,134.23,10.76]
[1642583290281,43.51630356,134.29,134.24,0.25]
[1642583291280,43.51630356,134.29,134.23,0.25]
[1642583291681,43.51630356,134.29,134.22,10.76]
[1642583292784,43.51630356,134.29,134.19,50.3858]
[1642583292785,0.25,134.28,134.19,50.3858]
[1642583292986,3.229,134.28,134.2,10.76]
[1642583294385,0.25,134.28,134.2,10.76]
[1642583294584,11.4261,134.28,134.2,10.76]
[1642583294783,0.25,134.28,134.2,10.76]
[1642583295284,43.51630356,134.29,134.21,0.25]
[1642583295482,43.51630356,134.29,134.21,1.67236348]
[1642583296184,43.51630356,134.29,134.2,10.76]
[1642583296384,2.979,134.28,134.19,47.4078]
[1642583296583,2.979,134.28,134.19,58.1678]
[1642583296984,0.25,134.27,134.19,58.1678]
[1642583297190,11.4269,134.27,134.19,47.4078]
[1642583297384,46.31487174,134.26,134.19,47.4078]
[1642583298386,46.31487174,134.26,134.2,0.25]
[1642583298586,46.31487174,134.26,134.19,47.4078]
[1642583299788,46.31487174,134.26,134.2,0.25]
[1642583303299,46.31487174,134.26,134.2,3.229]
[1642583304497,46.31487174,134.26,134.2,0.25]
[1642583304700,46.31487174,134.26,134.19,47.4078]
[1642583305096,46.31487174,134.26,134.17,2.979]
[1642583305498,46.31487174,134.26,134.17,4.38572261]
[1642583305696,46.31487174,134.26,134.18,10.76]
[1642583306128,46.31487174,134.26,134.19,0.25]
[1642583306430,46.31487174,134.26,134.2,10.76]
[1642583306828,46.31487174,134.26,134.21,0.25]
[1642583307029,46.31487174,134.26,134.2,12.16672261]
[1642583307229,46.31487174,134.26,134.2,10.76]
[1642583308230,46.31487174,134.26,134.2,12.16672261]
[1642583308432,46.31487174,134.26,134.2,10.76]
[1642583309031,46.31487174,134.26,134.21,0.25]
[1642583311234,46.31487174,134.26,134.21,1.65672261]
[1642583311434,46.31487174,134.26,134.21,2.979]
[1642583312034,46.31487174,134.26,134.2,10.76]
[1642583312437,46.31487174,134.26,134.21,0.25]
[1642583312639,46.31487174,134.26,134.2,10.76]
[1642583313640,46.31487174,134.26,134.19,2.979]
[1642583313843,46.31487174,134.26,134.2,0.25]
[1642583314041,46.31487174,134.26,134.2,10.76]
[1642583315640,46.31487174,134.26,134.21,0.25]
[1642583316941,46.31487174,134.26,134.2,10.76]
[1642583318242,46.31487174,134.26,134.21,0.25]
[1642583318847,46.31487174,134.26,134.2,10.76]
[1642583320347,4.13900178,134.28,134.21,0.25]
[1642583320548,4.13900178,134.29,134.22,10.76]
[1642583320847,4.13900178,134.3,134.23,0.25]
[1642583321248,53.19113399,134.3,134.23,1.65341112]
[1642583321748,4.13900178,134.3,134.23,1.65341112]
[1642583321949,4.13900178,134.31,134.24,10.76]
[1642583322148,4.13900178,134.32,134.24,10.76]
[1642583322349,4.13900178,134.32,134.25,0.25]
[1642583322748,4.13900178,134.32,134.25,1.65341112]
[1642583322949,4.13900178,134.32,134.26,2.978]
[1642583323149,51.98562719,134.33,134.26,2.978]
[1642583323551,51.98562719,134.33,134.24,10.76]
[1642583323752,8.35459166,134.32,134.24,10.76]
[1642583324154,8.35459166,134.32,134.24,12.15396781]
[1642583324576,51.98562719,134.33,134.24,12.15396781]
[1642583324776,4.13900178,134.33,134.25,3.228]
[1642583325176,4.13900178,134.33,134.25,13.988]
[1642583325378,4.13900178,134.34,134.26,1.39396781]
[1642583325777,4.13900178,134.34,134.25,13.738]
[1642583325778,35.48022229,134.33,134.25,13.738]
[1642583325978,35.48022229,134.33,134.26,0.25]
[1642583326579,7.11700178,134.34,134.26,0.25]
[1642583326781,7.11700178,134.34,134.26,1.64396781]
[1642583326782,4.13900178,134.34,134.26,1.64396781]
[1642583326980,4.13900178,134.34,134.27,10.76]
[1642583327180,8.35033613,134.35,134.27,10.76]
[1642583327380,8.35033613,134.36,134.28,0.25]
[1642583327582,54.31630439,134.36,134.28,0.25]
[1642583327779,50.10497004,134.36,134.28,0.25]
[1642583328280,4.13900178,134.36,134.28,0.25]
[1642583328680,8.34633023,134.37,134.28,0.25]
[1642583329484,0.25,134.36,134.27,10.76]
[1642583329683,3.227,134.36,134.27,10.76]
[1642583329883,43.40763489,134.35,134.27,10.76]
[1642583330085,2.978,134.34,134.27,10.76]
[1642583330282,3.228,134.34,134.27,10.76]
[1642583330483,2.978,134.34,134.27,10.76]
[1642583331288,0.25,134.33,134.27,10.76]
[1642583331485,2.978,134.32,134.27,10.76]
[1642583331686,41.15695738,134.31,134.27,10.76]
[1642583331886,40.90695738,134.31,134.27,10.76]
[1642583332987,52.08045738,134.31,134.24,10.76]
[1642583333189,52.08045738,134.31,134.22,35.1774]
[1642583333386,52.08045738,134.31,134.23,0.25]
[1642583333587,52.08045738,134.31,134.23,1.63207488]
[1642583334187,40.90695738,134.31,134.23,1.63207488]
[1642583334391,14.1516,134.33,134.24,1.38207488]
[1642583334586,11.1726,134.33,134.24,15.12007488]
[1642583334986,11.1726,134.33,134.25,1.38207488]
[1642583335386,36.06313533,134.32,134.24,13.738]
[1642583335587,11.1735,134.31,134.24,13.738]
[1642583335987,39.04113533,134.32,134.24,13.738]
[1642583336188,36.06313533,134.32,134.24,13.738]
[1642583337088,2.978,134.31,134.24,13.738]
[1642583337388,3.228,134.31,134.24,13.738]
[1642583338189,3.228,134.31,134.24,2.978]
[1642583338389,14.4015,134.31,134.22,35.1774]
[1642583340593,3.228,134.31,134.22,36.55947488]
[1642583340791,2.978,134.31,134.23,0.25]
[1642583340991,47.23583533,134.32,134.23,0.25]
[1642583341192,47.23583533,134.32,134.24,2.978]
[1642583341392,50.21383533,134.32,134.23,1.38207488]
[1642583341795,50.21383533,134.32,134.22,38.1554]
[1642583341993,0.25,134.31,134.22,35.1774]
[1642583342197,50.21383533,134.32,134.22,38.1564]
[1642583342493,50.21383533,134.32,134.22,39.53847488]
[1642583342694,50.21383533,134.32,134.23,0.25]
[1642583342893,47.23583533,134.32,134.23,11.01]
[1642583343894,47.23583533,134.32,134.24,2.978]
[1642583344095,47.23583533,134.32,134.24,4.36007488]
[1642583344297,47.23583533,134.32,134.25,0.25]
[1642583344496,47.23583533,134.32,134.24,4.36007488]
[1642583345097,46.73583533,134.32,134.24,4.36007488]
[1642583345297,35.56313533,134.32,134.24,4.36007488]
[1642583345498,35.56313533,134.32,134.24,2.978]
[1642583346403,46.73573533,134.32,134.24,2.978]
[1642583347403,11.1746,134.3,134.24,2.978]
[1642583347601,41.19752813,134.28,134.2,2.978]
[1642583347801,43.30279508,134.28,134.19,15.12107488]
[1642583348001,2.10526695,134.27,134.19,13.739]
[1642583348203,2.35526695,134.27,134.19,10.76]
[1642583348601,42.76501251,134.25,134.19,10.76]
[1642583348805,42.76501251,134.25,134.19,12.13595518]
[1642583349202,42.76501251,134.25,134.2,0.25]
[1642583350505,42.76501251,134.25,134.19,12.13595518]
[1642583350708,42.76501251,134.25,134.17,10.76]
[1642583350933,44.87027946,134.25,134.16,24.67005518]